bitfinex-derivatives/quotes_SOLF0:USTF0_20250623
["timestamp","ask_amount","ask_price","bid_price","bid_amount"]
[1750683486528,37.98,135.07,135.04,5.17568098]
[1750683486928,37.98,135.07,135.06,7.4023]
[1750683487129,43.36549632,135.07,135.06,7.4023]
[1750683487324,37.98,135.07,135.06,7.4023]
[1750683490330,45.3817,135.07,135.04,5.17568098]
[1750683491228,50.75174446,135.07,135.04,5.17568098]
[1750683491428,45.3817,135.07,135.04,5.17568098]
[1750683491723,45.3817,135.07,135.05,7.4025]
[1750683491724,37.98,135.07,135.05,7.4025]
[1750683491917,43.35500674,135.07,135.05,7.4025]
[1750683492117,43.35500674,135.07,135.05,7.4028]
[1750683492318,37.98,135.07,135.05,7.4028]
[1750683493031,43.35487572,135.07,135.05,7.4028]
[1750683493330,37.98,135.07,135.05,7.4028]
[1750683493532,45.3818,135.07,135.04,12.57878098]
[1750683493731,45.3818,135.07,135.04,5.17568098]
[1750683494125,50.75684655,135.07,135.04,5.17568098]
[1750683494328,45.3818,135.07,135.04,5.17568098]
[1750683494525,37.98,135.07,135.05,7.4025]
[1750683494830,37.98,135.07,135.04,5.17568098]
[1750683495023,37.98,135.07,135.05,7.4028]
[1750683495230,45.3818,135.07,135.05,7.4028]
[1750683495427,37.98,135.07,135.05,7.4028]
[1750683496435,37.98,135.07,135.06,7.4023]
[1750683496926,7.4014,135.08,135.06,7.4023]
[1750683497631,45.381,135.09,135.06,7.4023]
[1750683498328,45.381,135.09,135.04,5.17568098]
[1750683498329,5.37579756,135.08,135.07,7.4017]
[1750683499323,37.98,135.09,135.07,7.4017]
[1750683500135,45.3807,135.09,135.07,7.4017]
[1750683501737,45.3807,135.09,135.08,7.4012]
[1750683501738,37.98,135.09,135.08,7.4012]
[1750683501937,5.37487431,135.1,135.06,5.17568098]
[1750683502137,37.92,135.12,135.06,5.17568098]
[1750683502452,5.37470755,135.11,135.08,5.17568098]
[1750683502634,37.92,135.12,135.08,5.17568098]
[1750683502829,5.37364388,135.11,135.1,7.3997]
[1750683503034,5.37364388,135.11,135.07,5.17568098]
[1750683503235,37.92,135.12,135.07,5.17568098]
[1750683503537,5.37364399,135.11,135.09,7.4003]
[1750683504037,45.3193,135.12,135.09,7.4003]
[1750683504337,45.3193,135.12,135.1,7.4]
[1750683504536,50.69116268,135.12,135.1,7.4]
[1750683504733,37.92,135.12,135.1,7.4]
[1750683504943,5.3770341,135.14,135.09,5.17568098]
[1750683505132,677.3,135.15,135.09,5.17568098]
[1750683505436,5.37668299,135.14,135.11,7.3994]
[1750683505737,5.37677694,135.13,135.11,7.3994]
[1750683506035,5.37677694,135.13,135.12,7.399]
[1750683506733,7.3984,135.14,135.11,7.3993]
[1750683507037,12.7715816,135.13,135.09,5.17568098]
[1750683507231,7.3986,135.13,135.1,7.3996]
[1750683507430,12.7715816,135.13,135.1,7.3996]
[1750683507727,7.3986,135.13,135.1,7.3996]
[1750683508437,7.3986,135.13,135.1,7.4]
[1750683509538,12.7711816,135.14,135.09,5.17568098]
[1750683510036,5.3729816,135.14,135.12,7.3987]
[1750683510839,5.3729816,135.14,135.11,5.17568098]
[1750683511042,8.07421403,135.17,135.13,5.17568098]
[1750683511333,15.47021403,135.18,135.15,7.3969]
[1750683511534,5.36991638,135.17,135.15,7.3969]
[1750683511732,5.36991638,135.18,135.15,5.17568098]
[1750683511931,37.92,135.19,135.15,5.17568098]
[1750683512135,13.24385831,135.21,135.15,5.17568098]
[1750683512334,7.3954,135.19,135.17,7.3962]
[1750683515036,7.3948,135.2,135.18,7.3957]
[1750683515236,7.3948,135.2,135.16,5.17568098]
[1750683515436,10.52812166,135.21,135.16,5.17568098]
[1750683515631,7.395,135.2,135.16,5.17568098]
[1750683515837,677.22,135.22,135.16,5.17568098]
[1750683516042,37.92,135.22,135.18,5.17568098]
[1750683516243,12.7463052,135.24,135.21,7.3938]
[1750683516844,7.394,135.22,135.19,7.3948]
[1750683517142,5.35364789,135.24,135.17,10.01408098]
[1750683517346,7.3935,135.23,135.2,7.3943]
[1750683517652,5.3535474,135.24,135.17,10.01408098]
[1750683517942,7.3939,135.22,135.17,10.01408098]
[1750683518142,10.52189919,135.24,135.17,10.01408098]
[1750683518442,5.17568098,135.24,135.17,10.01408098]
[1750683518643,7.3935,135.22,135.17,10.01408098]
[1750683518943,50.19878098,135.25,135.17,10.01408098]
[1750683519144,7.3933,135.23,135.2,7.3946]
[1750683519746,7.3936,135.22,135.2,7.3946]
[1750683519944,47.87618098,135.25,135.2,7.3946]
[1750683520335,7.3937,135.22,135.19,7.395]
[1750683520740,5.17568098,135.23,135.17,10.01408098]
[1750683521348,42.7005,135.25,135.17,10.01408098]
[1750683521349,42.7005,135.25,135.19,7.3951]
[1750683521548,5.17568098,135.24,135.19,7.3951]
[1750683521857,7.394,135.22,135.19,7.3951]
[1750683522151,5.17568098,135.24,135.2,7.3946]
[1750683522351,5.17568098,135.24,135.19,5.17568098]
[1750683523150,12.56838098,135.24,135.21,7.3938]
[1750683523349,5.17568098,135.24,135.17,4.8384]
[1750683523550,7.3938,135.22,135.19,7.3949]
[1750683523845,7.3938,135.22,135.18,5.17568098]
[1750683524339,7.3938,135.22,135.2,7.3946]
[1750683524850,7.3938,135.22,135.18,5.17568098]
[1750683525039,7.3933,135.23,135.2,7.3942]
[1750683525243,7.3933,135.23,135.18,5.17568098]
[1750683525644,7.3927,135.24,135.21,7.3937]
[1750683525850,7.3927,135.24,135.18,5.17568098]
[1750683526042,7.3927,135.24,135.2,5.17568098]
[1750683526243,7.393,135.23,135.2,5.17568098]
[1750683526447,40.3701,135.25,135.2,5.17568098]
[1750683526750,7.393,135.23,135.21,7.3938]
[1750683527255,7.3932,135.23,135.2,7.3942]
[1750683528650,7.3927,135.24,135.21,7.394]
[1750683529653,45.54578098,135.25,135.21,7.394]
[1750683530753,7.3929,135.24,135.21,7.394]
[1750683531652,7.3929,135.24,135.19,5.17568098]
[1750683531957,7.3931,135.23,135.19,5.17568098]
[1750683532552,7.3931,135.23,135.17,4.8384]
[1750683532753,7.3931,135.23,135.21,7.394]
[1750683534567,7.3927,135.24,135.21,7.394]
[1750683534866,7.3927,135.24,135.22,7.3934]
[1750683535267,40.3701,135.25,135.22,7.3934]
[1750683535662,7.3927,135.24,135.22,7.3934]
[1750683536870,47.7623,135.25,135.22,7.3934]
[1750683537058,47.7623,135.25,135.21,5.17568098]
[1750683537059,37.9,135.25,135.21,5.17568098]
[1750683537260,44.8619,135.28,135.21,5.17568098]
[1750683537566,49.7586,135.28,135.25,7.3914]
[1750683537769,42.368,135.28,135.25,7.3914]
[1750683537970,49.7585,135.28,135.26,7.3912]
[1750683538166,49.7585,135.28,135.2,37.82]
[1750683538167,37.82,135.28,135.2,37.82]
[1750683538364,37.82,135.28,135.23,5.17568098]
[1750683538558,45.2105,135.28,135.25,7.3915]
[1750683538763,45.2105,135.28,135.23,5.17568098]
[1750683538964,37.82,135.28,135.23,5.17568098]
[1750683539370,45.2105,135.28,135.25,7.3915]
[1750683540460,5.17568098,135.27,135.2,5.17568098]
[1750683540760,5.17568098,135.25,135.17,10.01408098]
[1750683541070,37.8,135.24,135.17,10.01408098]
[1750683541276,7.3936,135.22,135.2,7.3943]
[1750683541470,37.8,135.24,135.19,5.17568098]
[1750683542066,45.1927,135.24,135.21,7.3936]
[1750683542266,37.8,135.24,135.21,7.3936]
[1750683542769,7.393,135.23,135.21,7.3936]
[1750683543074,37.8,135.24,135.21,7.3936]
[1750683543275,37.8,135.24,135.22,7.3934]
[1750683543571,45.1927,135.24,135.19,5.17568098]
[1750683544074,37.8,135.24,135.22,7.3934]
[1750683544269,187.083,135.27,135.21,5.17568098]
[1750683544669,7.3917,135.26,135.21,5.17568098]
[1750683544869,187.083,135.27,135.21,5.17568098]
[1750683545373,194.4743,135.27,135.21,5.17568098]
[1750683545769,50.0743,135.27,135.21,5.17568098]
[1750683545973,45.1913,135.27,135.23,5.17568098]
[1750683546273,37.8,135.27,135.23,5.17568098]
[1750683546474,37.8,135.27,135.2,37.8]
[1750683546675,37.8,135.27,135.24,7.3921]
[1750683547265,37.8,135.27,135.23,7.3927]
[1750683547464,37.8,135.27,135.2,42.97568098]
[1750683547670,7.3917,135.26,135.24,7.3922]
[1750683548274,42.97568098,135.3,135.24,5.17568098]
[1750683548471,43.17616327,135.3,135.24,5.17568098]
[1750683548775,43.17616327,135.3,135.26,7.391]
[1750683549579,11.77188578,135.29,135.27,7.3908]
[1750683550278,11.77188578,135.29,135.23,21.19568098]
[1750683550773,4.38188578,135.29,135.25,5.17568098]
[1750683551375,4.38188578,135.29,135.28,7.3903]
[1750683551576,4.38188578,135.29,135.25,5.17568098]
[1750683551975,4.38188578,135.29,135.28,7.3903]
[1750683554286,5.39212905,135.32,135.3,7.389]
[1750683554479,50.57992905,135.33,135.27,5.17568098]
[1750683554681,5.39212905,135.32,135.27,5.17568098]
[1750683554883,5.39212905,135.32,135.29,5.17568098]
[1750683555089,5.39212905,135.34,135.29,5.17568098]
[1750683555284,5.39212905,135.33,135.32,7.3878]
[1750683555579,5.39212905,135.34,135.29,5.17568098]
[1750683555787,9.76619353,135.35,135.31,5.17568098]
[1750683555986,17.15289353,135.35,135.32,7.388]
[1750683556482,9.76619353,135.35,135.3,5.17568098]
[1750683556687,14.94187451,135.35,135.29,5.17568098]
[1750683556887,9.76619353,135.35,135.29,5.17568098]
[1750683557089,17.15309353,135.35,135.3,5.17568098]
[1750683557384,9.76619353,135.35,135.3,5.17568098]
[1750683557685,4.37406448,135.35,135.32,5.17568098]
[1750683558087,4.37406448,135.35,135.33,7.3871]
[1750683558286,4.37406448,135.35,135.32,5.17568098]
[1750683558693,4.37406448,135.35,135.34,12.56268098]
[1750683558991,4.94062396,135.46,135.34,5.17568098]
[1750683558992,42.97568098,135.45,135.34,5.17568098]
[1750683559287,5.39495657,135.44,135.32,37.8]
[1750683559494,5.39495657,135.44,135.29,7.3863]
[1750683559495,5.39495657,135.43,135.29,7.3863]
[1750683559788,5.17568098,135.38,135.32,5.17568098]
[1750683559992,5.17568098,135.39,135.32,5.17568098]
[1750683560286,7.3851,135.38,135.35,7.3863]
[1750683560479,5.39495657,135.39,135.34,5.17568098]
[1750683560684,5.39495657,135.39,135.32,5.17568098]
[1750683560884,7.3858,135.37,135.34,7.3869]
[1750683561092,15.50663755,135.39,135.32,5.17568098]
[1750683561293,17.89203755,135.39,135.32,5.17568098]
[1750683561492,17.89203755,135.39,135.29,7.3863]
[1750683561690,17.89203755,135.39,135.32,5.17568098]
[1750683562291,7.3857,135.37,135.32,5.17568098]
[1750683562788,7.3862,135.36,135.33,7.3872]
[1750683563394,7.3862,135.36,135.34,7.3869]
[1750683563596,7.3856,135.37,135.34,7.3869]
[1750683563896,7.3856,135.37,135.3,38.0]
[1750683563897,5.17568098,135.38,135.33,5.17568098]
[1750683564090,12.56078098,135.38,135.35,7.3859]
[1750683564396,5.17568098,135.38,135.33,5.17568098]
[1750683564593,10.32790347,135.39,135.31,5.17568098]
[1750683564800,43.17190347,135.4,135.31,5.17568098]
[1750683565091,37.78,135.4,135.31,5.17568098]
[1750683565498,37.78,135.4,135.34,5.17568098]
[1750683565687,45.164,135.4,135.37,7.385]
[1750683566203,7.3843,135.39,135.36,7.3856]
[1750683566800,7.3843,135.39,135.37,7.3853]
[1750683567893,7.3843,135.39,135.36,7.3857]
[1750683568194,37.78,135.4,135.34,43.15568098]
[1750683568393,37.78,135.4,135.37,7.385]
[1750683569900,37.78,135.4,135.34,43.15568098]
[1750683569901,37.78,135.4,135.36,7.3858]
[1750683570201,7.47988098,135.39,135.34,5.17568098]
[1750683570500,7.3851,135.38,135.35,7.3862]
[1750683570801,7.47988098,135.39,135.35,7.3862]
[1750683571097,7.3852,135.38,135.36,7.3858]
[1750683571299,7.3852,135.38,135.31,37.98]
[1750683571300,2.2847,135.44,135.35,5.17568098]
[1750683571594,37.98,135.43,135.35,5.17568098]
[1750683571800,37.98,135.43,135.38,7.3843]
[1750683571801,7.3834,135.41,135.38,7.3843]
[1750683571988,43.15568098,135.43,135.35,5.17568098]
[1750683572190,43.15568098,135.43,135.4,7.3834]
[1750683572592,37.98,135.43,135.4,7.3834]
[1750683572901,37.98,135.43,135.37,5.17568098]
[1750683573109,37.98,135.43,135.39,5.17568098]
[1750683573706,45.3621,135.43,135.4,7.3836]
[1750683574304,7.3827,135.42,135.36,7.44328098]
[1750683574899,5.17568098,135.42,135.35,43.15568098]
[1750683575602,5.17568098,135.45,135.39,5.17568098]
[1750683575802,48.09630494,135.46,135.39,5.17568098]
[1750683576003,7.3812,135.45,135.39,5.17568098]
[1750683576305,42.92062396,135.46,135.4,5.17568098]
[1750683576501,50.30132396,135.46,135.43,7.3816]
[1750683576705,50.30132396,135.46,135.4,5.17568098]
[1750683576899,42.92062396,135.46,135.44,7.381]
[1750683577293,42.92062396,135.46,135.4,5.17568098]
[1750683577999,42.92062396,135.46,135.39,37.98]
[1750683578205,42.92062396,135.46,135.4,5.17568098]
[1750683579001,50.30132396,135.46,135.43,7.3816]
[1750683579799,7.381,135.45,135.43,7.3816]
[1750683581406,50.30132396,135.46,135.43,7.3816]
[1750683581608,42.92062396,135.46,135.43,7.3816]
[1750683582408,42.92062396,135.46,135.39,5.17568098]
[1750683582409,5.17568098,135.45,135.39,5.17568098]
[1750683582609,5.17568098,135.45,135.38,5.17568098]
[1750683582802,42.92062396,135.46,135.4,5.17568098]
[1750683583107,53.48092017,135.46,135.42,7.3821]
[1750683583307,48.09630494,135.46,135.42,7.3821]
[1750683583608,7.3811,135.45,135.42,7.3821]
[1750683583802,48.09630494,135.46,135.42,7.3821]
[1750683584400,7.3815,135.44,135.42,7.3821]
[1750683585202,7.3811,135.45,135.43,7.3821]
[1750683585509,42.92062396,135.46,135.41,5.17568098]
[1750683586005,42.92062396,135.46,135.39,37.96]
[1750683586209,42.92062396,135.46,135.43,5.17568098]
[1750683586807,50.30132396,135.46,135.43,5.17568098]
[1750683587006,42.92062396,135.46,135.43,5.17568098]
[1750683587609,42.92062396,135.46,135.41,5.17568098]
[1750683587804,7.3813,135.45,135.42,7.3822]
[1750683588113,42.92062396,135.46,135.41,5.17568098]
[1750683588298,4.94062396,135.46,135.43,5.17568098]
[1750683588498,37.96,135.52,135.43,37.96]
[1750683588702,45.52038098,135.53,135.46,5.17568098]
[1750683588903,7.3785,135.5,135.47,7.3796]
[1750683589103,5.38732625,135.52,135.45,5.17568098]
[1750683589312,6.88185824,135.57,135.45,5.17568098]
[1750683589313,4.6405,135.55,135.45,5.17568098]
[1750683589513,4.6405,135.55,135.49,5.17568098]
[1750683589700,4.6405,135.55,135.51,5.17568098]
[1750683589900,4.6405,135.55,135.49,5.17568098]
[1750683590105,7.3768,135.53,135.49,12.55448098]
[1750683590407,4.6405,135.55,135.49,5.17568098]
[1750683590602,5.17568098,135.54,135.47,5.17568098]
[1750683591013,7.3793,135.48,135.47,5.17568098]
[1750683591213,37.96,135.51,135.47,5.17568098]
[1750683592013,45.338,135.51,135.48,7.3791]
[1750683592214,37.96,135.51,135.47,5.17568098]
[1750683592614,7.3774,135.52,135.49,5.17568098]
[1750683593415,7.3769,135.53,135.5,7.3782]
[1750683593717,40.67,135.55,135.49,5.17568098]
[1750683593917,40.67,135.55,135.51,7.3772]
[1750683594120,40.67,135.55,135.49,5.17568098]
[1750683594519,7.3769,135.53,135.5,7.3779]
[1750683595021,40.67,135.55,135.51,7.3774]
[1750683595215,40.67,135.55,135.49,5.17568098]
[1750683595415,7.3763,135.54,135.51,7.3773]
[1750683595615,40.67,135.55,135.49,5.17568098]
[1750683596022,7.3766,135.54,135.49,5.17568098]
[1750683596224,40.67,135.55,135.49,5.17568098]
[1750683596716,40.67,135.55,135.46,7.0476]
[1750683597020,5.17568098,135.54,135.46,5.17568098]
[1750683597215,7.3774,135.52,135.49,7.3783]
[1750683597818,7.3774,135.52,135.48,5.17568098]
[1750683598212,7.3774,135.52,135.49,7.3787]
[1750683598414,7.3774,135.52,135.48,5.17568098]
[1750683598614,10.56770088,135.54,135.49,7.3785]
[1750683598818,5.17568098,135.54,135.49,7.3785]
[1750683599120,10.57131769,135.54,135.49,7.3785]
[1750683599322,43.79563671,135.55,135.48,5.17568098]
[1750683599619,7.3766,135.54,135.48,5.17568098]
[1750683599814,43.79563671,135.55,135.48,5.17568098]
[1750683600016,38.4,135.55,135.48,5.17568098]
[1750683600213,38.4,135.55,135.49,7.3784]
[1750683600416,5.17568098,135.54,135.45,2.4904]
[1750683600618,5.17568098,135.52,135.44,2.2521]
[1750683600817,7.3799,135.47,135.44,7.3812]
[1750683601022,7.3799,135.47,135.42,5.17568098]
[1750683601222,38.4,135.49,135.42,5.17568098]
[1750683601422,7.3802,135.47,135.44,7.3815]
[1750683601722,7.3802,135.47,135.41,38.4]
[1750683602023,7.3796,135.48,135.43,5.17568098]
[1750683602222,38.4,135.49,135.43,5.17568098]
[1750683602416,38.4,135.49,135.45,7.3806]
[1750683602816,38.4,135.49,135.43,5.17568098]
[1750683603123,38.4,135.49,135.45,7.3807]
[1750683603323,38.4,135.49,135.43,5.17568098]
[1750683603728,45.7791,135.49,135.46,7.3802]
[1750683604524,45.7791,135.49,135.47,7.3799]
[1750683604827,5.17568098,135.48,135.42,5.17568098]
[1750683605025,5.17568098,135.48,135.43,7.382]
[1750683605218,5.17568098,135.48,135.41,5.17568098]
[1750683605413,5.17568098,135.46,135.41,5.17568098]
[1750683605624,38.4,135.45,135.39,7.59158098]
[1750683605819,43.0437,135.45,135.37,38.4]
[1750683606015,5.17568098,135.43,135.35,4.7303]
[1750683606226,5.17568098,135.43,135.37,5.17568098]
[1750683606721,5.17568098,135.43,135.36,5.17568098]
[1750683606925,7.3829,135.42,135.36,5.17568098]
[1750683607320,5.17568098,135.43,135.4,7.3834]
[1750683607630,7.3824,135.43,135.4,7.3834]
[1750683607926,5.17568098,135.44,135.39,7.384]
[1750683608228,7.3829,135.42,135.36,5.17568098]
[1750683608623,7.3829,135.42,135.37,12.25]
[1750683608828,7.3829,135.42,135.38,7.3843]
[1750683609024,38.4,135.41,135.37,12.25]
[1750683609524,45.7832,135.41,135.38,7.3847]
[1750683609728,38.4,135.41,135.37,12.25]
[1750683609927,38.4,135.41,135.39,7.3842]
[1750683610227,38.4,135.41,135.37,12.25]
[1750683610822,45.7835,135.41,135.37,12.25]
[1750683611231,38.4,135.41,135.37,12.25]
[1750683611425,38.4,135.41,135.38,5.17568098]
[1750683611926,38.4,135.41,135.4,7.3837]
[1750683612322,38.4,135.44,135.38,5.17568098]
[1750683612925,45.7816,135.44,135.41,7.3828]
[1750683614430,38.4,135.44,135.37,12.25]
[1750683614731,38.4,135.44,135.38,5.17568098]
[1750683615031,50.95748098,135.44,135.41,7.3828]
[1750683615226,38.4,135.44,135.41,7.3828]
[1750683615433,45.7818,135.44,135.41,7.3828]
[1750683616330,7.3821,135.43,135.4,7.3834]
[1750683616527,5.17568098,135.42,135.37,12.25]
[1750683616834,7.3837,135.4,135.37,12.25]
[1750683617133,45.7837,135.4,135.37,19.635]
[1750683617629,45.7837,135.4,135.37,12.25]
[1750683617630,43.57568098,135.4,135.37,12.25]
[1750683617826,38.4,135.4,135.37,12.25]
[1750683618521,5.17568098,135.39,135.37,12.25]
[1750683618742,9.89758098,135.39,135.34,7.3867]
[1750683618928,5.17568098,135.37,135.29,4.7695]
[1750683619126,7.3871,135.34,135.3,5.17568098]
[1750683619329,38.4,135.36,135.3,5.17568098]
[1750683619732,2.3343,135.39,135.3,5.17568098]
[1750683619933,2.3343,135.39,135.29,4.7695]
[1750683619934,38.42,135.38,135.32,5.17568098]
[1750683620237,45.805,135.38,135.35,7.3862]
[1750683620723,38.42,135.38,135.35,7.3862]
[1750683620923,38.42,135.38,135.36,7.3858]
[1750683621128,38.42,135.38,135.32,5.17568098]
[1750683621834,45.8051,135.38,135.35,7.3861]
[1750683622734,45.8051,135.38,135.35,24.5161]
[1750683623433,5.17568098,135.44,135.36,5.17568098]
[1750683623735,38.8,135.43,135.35,17.13]
[1750683623935,5.17568098,135.4,135.35,17.13]
[1750683624134,38.8,135.39,135.35,17.13]
[1750683624536,38.8,135.39,135.37,7.385]
[1750683624735,38.8,135.39,135.35,22.30568098]
[1750683626036,38.8,135.39,135.38,7.3848]
[1750683626940,38.8,135.39,135.35,22.30568098]
[1750683627132,38.8,135.39,135.35,17.13]
[1750683627532,7.385,135.38,135.36,7.3857]
[1750683627735,7.385,135.38,135.35,17.13]
[1750683628241,7.3853,135.37,135.35,24.5162]
[1750683628638,7.3851,135.38,135.35,24.5162]
[1750683629441,7.3851,135.38,135.36,7.3858]
[1750683629642,46.1845,135.39,135.35,17.13]
[1750683630045,38.8,135.39,135.35,17.13]
[1750683630934,7.3851,135.38,135.36,7.3858]
[1750683632137,7.3851,135.38,135.35,24.516]
[1750683632447,46.1845,135.39,135.35,17.13]
[1750683632646,46.1845,135.39,135.36,7.3856]
[1750683633337,38.8,135.39,135.36,5.17568098]
[1750683633539,38.8,135.39,135.38,5.17568098]
[1750683633845,38.8,135.42,135.38,5.17568098]
[1750683634044,38.8,135.42,135.4,5.17568098]
[1750683634235,38.8,135.42,135.41,7.3831]
[1750683639550,719.67519354,135.48,135.4,5.17568098]
[1750683639853,676.7,135.48,135.45,5.17568098]
[1750683640045,7.59178098,135.53,135.47,5.17568098]
[1750683640253,38.8,135.51,135.46,5.17568098]
[1750683640639,7.3785,135.5,135.46,5.17568098]
[1750683641545,46.178,135.51,135.46,5.17568098]
[1750683642153,38.8,135.51,135.46,5.17568098]
[1750683642356,38.8,135.51,135.48,5.17568098]
[1750683642656,54.2508688,135.54,135.48,5.17568098]
[1750683642847,5.38218403,135.53,135.5,5.17568098]
[1750683643049,38.8,135.54,135.53,7.3766]
[1750683643656,46.1544,135.57,135.52,5.17568098]
[1750683643850,38.78,135.57,135.52,5.17568098]
[1750683644053,6.88185824,135.67,135.56,5.17568098]
[1750683644359,38.78,135.68,135.53,38.78]
[1750683644360,43.92367749,135.68,135.65,5.17568098]
[1750683644549,4.88692153,135.7,135.68,7.3681]
[1750683644754,4.88692153,135.7,135.67,5.17568098]
[1750683644755,4.88692153,135.7,135.6,38.78]
[1750683645051,5.17568098,135.68,135.62,7.3714]
[1750683645358,41.2359,135.67,135.62,5.17568098]
[1750683645558,41.2359,135.67,135.63,5.17568098]
[1750683645751,7.3697,135.66,135.63,5.17568098]
[1750683645955,41.2359,135.67,135.61,5.17568098]
[1750683646151,5.17568098,135.66,135.61,5.17568098]
[1750683646459,49.06084493,135.67,135.59,7.82494493]
[1750683646652,49.06084493,135.67,135.6,7.3724]
[1750683646852,7.3713,135.63,135.59,7.82494493]
[1750683647050,38.78,135.63,135.57,2.2822]
[1750683647457,38.78,135.63,135.55,7.82494493]
[1750683647458,7.82494493,135.62,135.55,7.82494493]
[1750683647862,7.3734,135.59,135.55,7.82494493]
[1750683648158,38.78,135.59,135.55,7.82494493]
[1750683648361,38.78,135.59,135.57,7.374]
[1750683649762,38.78,135.59,135.56,7.3748]
[1750683650458,46.1533,135.59,135.55,7.3753]
[1750683650659,38.78,135.59,135.54,10.13334493]
[1750683651053,6.88185824,135.74,135.58,7.82494493]
[1750683651250,10.23524493,135.68,135.59,7.82494493]
[1750683651658,7.82494493,135.66,135.57,46.58494493]
[1750683651962,38.76,135.65,135.59,7.82494493]
[1750683652353,38.76,135.65,135.6,14.6]
[1750683652754,38.76,135.65,135.6,21.9724]
[1750683652955,38.76,135.65,135.6,14.6]
[1750683653153,7.82494493,135.64,135.6,14.6]
[1750683653357,7.3722,135.61,135.6,14.6]
[1750683653562,47.1122,135.61,135.6,14.6]
[1750683654464,7.3731,135.6,135.56,7.3748]
[1750683654662,7.82494493,135.59,135.51,2.3738]
[1750683654867,7.3764,135.54,135.5,7.3781]
[1750683655059,39.74,135.54,135.47,7.82494493]
[1750683655261,39.74,135.54,135.5,7.3779]
[1750683655562,47.1163,135.54,135.47,7.82494493]
[1750683655763,39.74,135.54,135.49,7.3784]
[1750683655953,7.3769,135.53,135.47,7.82494493]
[1750683656569,7.3772,135.52,135.46,14.68034493]
[1750683656963,7.3772,135.52,135.48,7.379]
[1750683657269,7.3778,135.51,135.49,6.04]
[1750683657567,2.285,135.55,135.49,6.04]
[1750683657568,39.74,135.5,135.49,6.04]
[1750683657768,39.74,135.5,135.42,2.4706]
[1750683657954,39.74,135.5,135.45,7.3806]
[1750683658666,39.74,135.5,135.46,7.3804]
[1750683659263,47.1184,135.5,135.46,7.3804]
[1750683659659,39.74,135.5,135.43,7.82494493]
[1750683659864,39.74,135.5,135.45,7.82494493]
[1750683660260,39.74,135.5,135.49,7.3788]
[1750683660868,39.76,135.53,135.47,7.82494493]
[1750683662666,39.76,135.53,135.51,7.3772]
[1750683662870,39.76,135.53,135.49,7.82494493]
[1750683663067,47.1367,135.53,135.5,7.3778]
[1750683663266,39.76,135.53,135.47,7.82494493]
[1750683663672,39.76,135.53,135.44,39.76]
[1750683663873,39.76,135.53,135.47,7.82494493]
[1750683664169,47.1369,135.53,135.47,7.82494493]
[1750683664469,39.76,135.53,135.47,7.82494493]
[1750683664671,39.76,135.53,135.5,7.3778]
[1750683665276,47.1367,135.53,135.5,7.3778]
[1750683665768,39.76,135.53,135.47,7.82494493]
[1750683666272,39.76,135.53,135.49,7.3785]
[1750683666871,7.3775,135.52,135.5,7.3782]
[1750683667062,7.3775,135.52,135.47,7.82494493]
[1750683667572,7.3775,135.52,135.49,7.3784]
[1750683668175,47.58494493,135.53,135.45,7.82494493]
[1750683668662,47.58494493,135.53,135.47,7.3796]
[1750683669374,47.58494493,135.53,135.46,7.3803]
[1750683669565,7.82494493,135.51,135.43,7.82494493]
[1750683669762,7.379,135.49,135.46,7.3803]
[1750683669967,39.76,135.48,135.46,7.3803]
[1750683670171,39.76,135.48,135.43,7.82494493]
[1750683670474,39.76,135.48,135.37,39.76]
[1750683670672,7.82494493,135.47,135.39,7.82494493]
[1750683670873,7.381,135.45,135.42,7.3823]
[1750683671172,39.76,135.44,135.37,54.95374493]
[1750683671975,39.76,135.44,135.37,4.8754]
[1750683672172,7.82494493,135.43,135.3,14.7781]
[1750683672375,7.82494493,135.43,135.34,7.82494493]